Cogmind - Beta 10.1 @@@ ROGUE MODE // 2020.10.09 @ 14:28:43 Player: 3.14 Result: Self-destructed Performance ------------- Evolutions (4) 2000 Regions Visited (8) 1600 Robots Destroyed (86) 430 Value Destroyed (2701) 2701 Prototype IDs (12) 240 Alien Tech Used (0) 0 Bonus (373) 373 TOTAL SCORE: 7344 Bonus ------- High Alert Combat Kills 173 Follower Combat Kills 230 Friendly Fire -30 Cogmind --------- Core Integrity 741/850 Matter 126/300 Energy 125/265 System Corruption 0% Temperature Cool (157) Movement Treading (180) Ox1 Location -6/Factory Parts ------- > --- POWER (1) -------- Improved Ion Engine > --- PROPULSION (4) --- Medium Treads Medium Treads > --- UTILITY (6) ------ Large Storage Unit Large Storage Unit Large Storage Unit Advanced Targeting Computer Core Analyzer Improved Medium Armor Plating > --- WEAPON (4) ------- Gauss Rifle Gauss Rifle Flak Gun Flak Gun > --- INVENTORY (22) --- Light Fission Core Advanced Treads Advanced Heat Sink Large Matter Pod (150) Enhanced Optical Array Improved Sensor Array Armor Integrity Analyzer Hardened Heavy Armor Plating Improved Medium Armor Plating Improved Medium Armor Plating Improved Medium Armor Plating Insulated Plating Long-range Tractor Beam Heavy EM Shotgun Minigun Minigun Minigun Gauss Rifle Improved Proton Missile Launcher Heavy Rocket Launcher Axe Peak State ------------ > --- POWER ------------ Improved Ion Engine > --- PROPULSION ------- Light Treads Light Treads Medium Treads Medium Treads > --- UTILITY ---------- Large Storage Unit Large Storage Unit Large Storage Unit Advanced Targeting Computer Core Analyzer Improved Medium Armor Plating > --- WEAPON ----------- Gauss Rifle Flak Gun Flak Gun Improved Proton Missile Launcher > --- INVENTORY -------- Light Fission Core Advanced Treads Advanced Heat Sink Large Matter Pod Enhanced Optical Array Improved Sensor Array Armor Integrity Analyzer Hardened Heavy Armor Plating Improved Medium Armor Plating Improved Medium Armor Plating Improved Medium Armor Plating Insulated Plating Long-range Tractor Beam Heavy EM Shotgun Minigun Minigun Minigun Gauss Rifle Gauss Rifle Heavy Rocket Launcher Axe [Rating: 50] Favorites ----------- Power Improved Ion Engine Engine Improved Ion Engine Propulsion Light Treads Treads Light Treads Utility Large Storage Unit Device Improved Heat Sink Storage Large Storage Unit Processor Advanced Targeting Computer Protection Improved Medium Armor Plating Weapon EM Pulse Gun Energy Gun EM Pulse Gun Ballistic Gun Improved Assault Rifle Launcher EMP Blaster Slashing Weapon Katana Build | -11 -10 -10 -10 -9 -8 -8 -7 -6 ------- Run | Scr Mat Min Exi Min Mat Sto Fac Fac Slots Evolved 8 | . . . . . 4 . 2 2 Power . | . . . . . . . . . Propulsion 2 | . . . . . 1 . 1 . Utility 4 | . . . . . 2 . . 2 Weapon 2 | . . . . . 1 . 1 . Parts Attached 117 | 7 23 . 2 . 12 30 18 25 Power 6 | 1 2 . . . 1 . 1 1 Engine 6 | 1 2 . . . 1 . 1 1 Core . | . . . . . . . . . Reactor . | . . . . . . . . . Propulsion 25 | 2 6 . . . 1 6 5 5 Treads 25 | 2 6 . . . 1 6 5 5 Leg . | . . . . . . . . . Wheel . | . . . . . . . . . Hover . | . . . . . . . . . Flight . | . . . . . . . . . Utility 30 | 2 6 . 2 . 5 3 5 7 Device 11 | 1 4 . . . 4 1 . 1 Storage 9 | 1 2 . 2 . . 1 3 . Processor 2 | . . . . . . . . 2 Hackware . | . . . . . . . . . Protection 8 | . . . . . 1 1 2 4 Artifact . | . . . . . . . . . Weapon 56 | 2 9 . . . 5 21 7 12 Energy Gun 21 | 2 9 . . . 4 6 . . Energy Cannon . | . . . . . . . . . Ballistic Gun 28 | . . . . . 1 12 5 10 Ballistic Cannon . | . . . . . . . . . Launcher 4 | . . . . . . 2 . 2 Special Weapon . | . . . . . . . . . Impact Weapon . | . . . . . . . . . Slashing Weapon 3 | . . . . . . 1 2 . Piercing Weapon . | . . . . . . . . . Special Melee Weapon . | . . . . . . . . . Unidentified Prototypes 4 | . . . . . 2 1 1 . Parts Lost 7 | . 2 . . . 2 1 . 2 Power 1 | . 1 . . . . . . . Propulsion 2 | . . . . . . . . 2 Utility 1 | . 1 . . . . . . . Weapon 3 | . . . . . 2 1 . . Highest Loss Streak 2 | . 1 . . . 1 1 . 2 Average Slot Usage (%) 98 | . 95 100 100 100 99 99 99 99 Engine 9 | . 13 14 14 14 9 9 7 6 Treads 27 | . 25 28 28 28 27 27 29 25 Device 5 | . 11 . . . 10 7 . . Storage 22 | . 15 28 28 28 18 26 23 20 Processor 2 | . . . . . . . . 13 Protection 3 | . . . . . 6 2 6 6 Energy Gun 15 | . 27 28 28 28 22 12 . . Ballistic Gun 11 | . . . . . 4 12 29 25 Naked Turns . | . . . . . . . . . Heaviest Build 82 | 13 27 27 43 43 52 64 79 82 Greatest Support 96 | 40 40 40 40 40 60 60 82 96 Greatest Overweight (x) 5 | . 5 . 1 1 . 1 1 1 Average Overweight (x) . | . . . . 1 . . . . Largest Inventory Capacity 22 | 6 12 12 16 16 16 20 22 22 Average Capacity 16 | 5 6 12 14 16 16 19 20 22 Most Carried 22 | 4 9 10 14 14 16 20 20 22 Average Carried 15 | 2 6 9 11 14 14 19 19 20 Final Capacity 22 | 6 12 12 16 16 16 20 22 22 Final Carried 22 | 4 9 10 14 14 16 20 20 22 Class Distribution -------------------- 37% | Mutant 17% | Hauler-Gunner 12% | Scavenger-Gunner 11% | Hauler-Tank 9% | Scavenger-Tank 6% | Tank 3% | Scavenger-Mutant Dominant Class ---------------- Mutant | -10/Materials Mutant | -10/Mines Mutant | -10/Exiles Mutant | -9/Mines Tank | -8/Materials Scavenger-Gunner | -8/Storage Hauler-Tank | -7/Factory Hauler-Gunner | -6/Factory Resources | -11 -10 -10 -10 -9 -8 -8 -7 -6 ----------- Run | Scr Mat Min Exi Min Mat Sto Fac Fac Matter Collected 2206 | 270 222 . 40 20 111 620 180 743 Remotely 131 | 86 . . . . . . . 45 Salvage Created 4281 | 89 569 . . . 338 1374 266 1645 Parts 213 | 2 30 . . . 13 70 11 87 Haulers Intercepted 5 | . 2 . . . . 1 . 2 Recyclers Shooed 4 | . 1 . . . . . . 3 Parts Field Recycled . | . . . . . . . . . Retrieved Matter . | . . . . . . . . . Parts Self-Destructed . | . . . . . . . . . Prevented . | . . . . . . . . . Kills | -11 -10 -10 -10 -9 -8 -8 -7 -6 ------- Run | Scr Mat Min Exi Min Mat Sto Fac Fac Combat Hostiles Destroyed 56 | . 7 . . . 4 21 5 19 Guns 42 | . 7 . . . 4 17 4 10 AOE 12 | . . . . . . 3 1 8 Classes Destroyed 16 | 1 5 . . . 2 4 1 3 Worker 6 | . . . . . 1 2 1 2 Builder 3 | . . . . . . . . 3 Tunneler 3 | . 1 . . . 1 . . 1 Hauler 5 | . 2 . . . . 1 . 2 Recycler 10 | 1 2 . . . 1 3 . 3 Mechanic 1 | . . . . . . 1 . . Operator 1 | . . . . . . . 1 . Watcher 1 | . 1 . . . . . . . Swarmer 11 | . 3 . . . . 4 . 4 Grunt 23 | . 4 . . . 3 6 2 8 Brawler 2 | . . . . . . 1 . 1 Duelist 4 | . . . . . . 3 . 1 Protector 1 | . . . . . . . . 1 Sentry 10 | . . . . . . 6 3 1 Hunter 4 | . . . . . 1 1 . 2 Programmer 1 | . . . . . . . . 1 Best Kill Streak 8 | 1 4 . . . 3 6 4 8 Combat Bots Only 6 | . 4 . . . 3 5 3 6 Max Kills in Single Turn 4 | 1 1 . . . 1 2 3 4 Gunslinging 1 | . . . . . . 1 . 1 Exploded 4 | . . . . . . 1 1 4 Melee . | . . . . . . . . . Uniques/NPCs Destroyed . | . . . . . . . . . Combat | -11 -10 -10 -10 -9 -8 -8 -7 -6 -------- Run | Scr Mat Min Exi Min Mat Sto Fac Fac Damage Taken 3285 | . 315 . . . 304 1076 190 1400 Core 315 | . 25 . . . 57 112 12 109 Absorbed by Shields 49 | . . . . . 49 . . . Core Remaining (%) 89 | 100 . . . 90 . 69 98 . Volleys Fired 155 | 5 26 . . . 15 66 9 34 Largest 4 | 2 2 . . . 3 3 4 4 Hottest 189 | 90 90 . . . 189 189 97 112 Shots Fired 433 | 10 52 . . . 41 173 36 121 Gun 415 | 10 52 . . . 41 160 36 116 Cannon . | . . . . . . . . . Launcher 18 | . . . . . . 13 . 5 Special . | . . . . . . . . . Kinetic 265 | . . . . . 12 101 36 116 Thermal 112 | 10 34 . . . 9 59 . . Explosive 1 | . . . . . . . . 1 Electromagnetic 55 | . 18 . . . 20 13 . 4 Robot Hit Streak 28 | 5 8 . . . 11 28 12 18 Robot Miss Streak 4 | 2 4 . . . 4 3 3 4 Penetration Max 1 | . . . . . . . . 1 Secondary Targets 8 | . . . . . 2 3 . 3 Max Gunslinging Chain 1 | . . . . . 1 1 . 1 Shots Hit Robots 317 | 7 34 . . . 29 113 30 104 Core Hits 263 | 2 22 . . . 15 56 23 145 Critical Hits 1 | . . . . . . . . 1 Critical Kills . | . . . . . . . . . Critical Parts Destroyed 1 | . . . . . . . . 1 Melee Attacks 2 | . . . . . . 1 1 . Impact . | . . . . . . . . . Slashing 2 | . . . . . . 1 1 . Piercing . | . . . . . . . . . Sneak Attacks . | . . . . . . . . . Combat Hostiles . | . . . . . . . . . Follow-up Attacks . | . . . . . . . . . Damage Inflicted 7678 | 59 417 . . . 416 2189 1043 3554 Guns 4905 | 59 403 . . . 340 1560 432 2111 Cannons . | . . . . . . . . . Explosions 2631 | . . . . . . 629 611 1391 Melee . | . . . . . . . . . Ramming 142 | . 14 . . . 76 . . 52 Kinetic 3587 | . . . . . 54 990 432 2111 Thermal 1962 | 59 253 . . . 96 570 611 373 Explosive 264 | . . . . . . . . 264 Electromagnetic 1723 | . 150 . . . 190 629 . 754 Impact . | . . . . . . . . . Slashing . | . . . . . . . . . Piercing . | . . . . . . . . . Highest Corruption . | . . . . . . . . . Average Corruption . | . . . . . . . . . Corruption Purged . | . . . . . . . . . Overload Shots . | . . . . . . . . . Overflow Damage 174 | . . . . . . . 149 25 Projectiles . | . . . . . . . . . Explosions 174 | . . . . . . . 149 25 Melee . | . . . . . . . . . Knockbacks . | . . . . . . . . . Impact . | . . . . . . . . . Kinetic . | . . . . . . . . . Secondary . | . . . . . . . . . Self-Inflicted Damage 50 | . . . . . . 14 36 . Shots 2 | . . . . . . 1 1 . Rammed 11 | . 2 . . . 4 . . 5 Targets Rammed 13 | . 2 . . . 5 . . 6 Kicked . | . . . . . . . . . Crushed 2 | . . . . . 1 . . 1 Highest Temperature 337 | 94 337 . . . 180 132 72 148 Average Temperature 52 | 55 128 . . . 41 38 30 41 Received Heat Transfer 1047 | . 126 . . . 147 396 63 315 Siege Activations . | . . . . . . . . . Robots Corrupted 2 | . . . . . . 1 . 1 Combat Hostiles 2 | . . . . . . 1 . 1 Parts Fried 5 | . 1 . . . 2 1 . 1 Impact Corruptions . | . . . . . . . . . Robots Melted . | . . . . . . . . . Combat Hostiles . | . . . . . . . . . Parts Melted 2 | 1 1 . . . . . . . Heat Transferred 2838 | 161 669 . . . 222 1036 350 400 Parts Sabotaged . | . . . . . . . . . Parts Stolen . | . . . . . . . . . Parts Stripped . | . . . . . . . . . Power Chain Reactions 4 | . . . . . . 1 . 3 Missiles Intercepted . | . . . . . . . . . Alert | -11 -10 -10 -10 -9 -8 -8 -7 -6 ------- Run | Scr Mat Min Exi Min Mat Sto Fac Fac Peak Influence 959 | 5 222 8 . . 105 481 218 959 Initial 218 | . 3 8 . . . 18 218 89 Average 150 | . 88 8 . . 75 193 89 342 Maximum Alert Level 3 | . 1 . . . . 2 1 3 Low Security (%) 72 | 100 87 100 . 100 100 55 92 28 Level 1 23 | . 12 . . . . 36 7 57 Level 2 1 | . . . . . . 7 . . Level 3 2 | . . . . . . . . 13 Level 4 . | . . . . . . . . . Level 5 . | . . . . . . . . . High Security . | . . . . . . . . . Max Security . | . . . . . . . . . Squads Dispatched 14 | . 1 . . . 1 6 1 5 Investigation 3 | . . . . . . 3 . . Extermination 1 | . . . . . . . . 1 Reinforcement 6 | . 1 . . . 1 1 1 2 Assault 4 | . . . . . . 2 . 2 Garrison . | . . . . . . . . . Intercept . | . . . . . . . . . Construction Impeded 2 | . . . . . . 1 . 1 Haulers Reinforced 1 | . . . . . . . . 1 Stealth | -11 -10 -10 -10 -9 -8 -8 -7 -6 --------- Run | Scr Mat Min Exi Min Mat Sto Fac Fac Distress Signals 4 | . 1 . . . 1 . 1 1 Communications Jammed . | . . . . . . . . . Distress Signals . | . . . . . . . . . Times Spotted 104 | . 17 . . . 9 37 7 34 Peak Tracking Total 16 | . 5 . . . 3 10 3 16 Tactical Retreats 7 | . . . . . . 2 . 5 Traps | -11 -10 -10 -10 -9 -8 -8 -7 -6 ------- Run | Scr Mat Min Exi Min Mat Sto Fac Fac Traps Triggered 17 | . 5 . . . 2 3 1 6 Indirectly 4 | . . . . . . 2 . 2 Trap Hack Attempts . | . . . . . . . . . Triggered . | . . . . . . . . . Disarmed . | . . . . . . . . . Reprogrammed . | . . . . . . . . . Reused . | . . . . . . . . . Traps Extracted . | . . . . . . . . . Installed . | . . . . . . . . . Triggered 1 | . . . . . . 1 . . Machines | -11 -10 -10 -10 -9 -8 -8 -7 -6 ---------- Run | Scr Mat Min Exi Min Mat Sto Fac Fac Machines Disabled 12 | . . . . . . 1 2 9 Max in Single Turn 5 | . . . . . . 1 2 5 Machines Sabotaged . | . . . . . . . . . Garrisons Compromised . | . . . . . . . . . Overloaded Fab Kills . | . . . . . . . . . Fab Network Shutdowns 1 | . . . . . . . . 1 Hacking | -11 -10 -10 -10 -9 -8 -8 -7 -6 --------- Run | Scr Mat Min Exi Min Mat Sto Fac Fac Machines Accessed 24 | . 4 . 1 . 3 7 6 3 Terminals 15 | . 3 . . . 2 5 4 1 Fabricators 1 | . . . . . . . . 1 Repair Stations 5 | . 1 . . . 1 1 1 1 Recycling Units . | . . . . . . . . . Scanalyzers 1 | . . . . . . . 1 . Garrison Access 1 | . . . . . . 1 . . Total Hacks 80 | . 19 . 1 . 11 18 23 8 Successful 53 | . 17 . 1 . 4 11 15 5 Failed 27 | . 2 . . . 7 7 8 3 Catastrophic 4 | . . . . . . 3 1 . Database Lockouts . | . . . . . . . . . Manual 37 | . 13 . . . 5 10 7 2 Terminals 52 | . 13 . . . 10 14 13 2 Fabricators 4 | . . . . . . . . 4 Repair Stations 13 | . 6 . . . 1 2 2 2 Recycling Units . | . . . . . . . . . Scanalyzers 8 | . . . . . . . 8 . Garrison Access 2 | . . . . . . 2 . . Terminal Hacks 22 | . 7 . 1 . 3 6 5 . Record 1 | . . . 1 . . . . . Part Schematic 1 | . 1 . . . . . . . Robot Analysis 3 | . 2 . . . . 1 . . Prototype ID Bank 4 | . 2 . . . 2 . . . Open Door 3 | . . . . . . 3 . . Level Access Points 1 | . . . . . . . 1 . Terminal Index 2 | . 1 . . . . . 1 . Repair Station Index 1 | . 1 . . . . . . . Alert Level 1 | . . . . . . . 1 . Unreport Threat 2 | . . . . . . 1 1 . Locate Traps 1 | . . . . . 1 . . . Recall Investigation 1 | . . . . . . 1 . . Zone Layout 1 | . . . . . . . 1 . Fabricator Hacks 3 | . . . . . . . . 3 Load Schematic 1 | . . . . . . . . 1 Build 2 | . . . . . . . . 2 Repair Station Hacks 10 | . 6 . . . . 2 1 1 Scan Component 6 | . 3 . . . . 1 1 1 Repair 4 | . 3 . . . . 1 . . Recycling Unit Hacks . | . . . . . . . . . Scanalyzer 7 | . . . . . . . 7 . Insert Component 3 | . . . . . . . 3 . Analyze 4 | . . . . . . . 4 . Garrison Access Hacks 1 | . . . . . . 1 . . Unlock Access 1 | . . . . . . 1 . . Unauthorized Hacks 10 | . 4 . . . 1 2 2 1 Terminals 10 | . 4 . . . 1 2 2 1 Track 3 | . 1 . . . 1 . 1 . Botnet 6 | . 2 . . . . 2 1 1 Operators 1 | . 1 . . . . . . . Fabricators . | . . . . . . . . . Repair Stations . | . . . . . . . . . Recycling Units . | . . . . . . . . . Scanalyzers . | . . . . . . . . . Garrison Access . | . . . . . . . . . Data Cores Recovered 1 | . . . . . . . 1 . Used 1 | . . . . . . . 1 . Hacking Detections 20 | . 3 . . . 2 6 6 3 Full Trace Events . | . . . . . . . . . Feedback Events . | . . . . . . . . . Feedback Blocked . | . . . . . . . . . Robot Schematics Acquired . | . . . . . . . . . Robots Built . | . . . . . . . . . Matter . | . . . . . . . . . Time . | . . . . . . . . . Total Robot Build Rating . | . . . . . . . . . Part Schematics Acquired 4 | . 1 . . . . . 3 . Parts Built 4 | . . . . . . . . 4 Matter 336 | . . . . . . . . 336 Time 168 | . . . . . . . . 168 Total Part Build Rating 16 | . . . . . . . . 16 Parts Repaired 4 | . 3 . . . . 1 . . Time 104 | . 78 . . . . 26 . . Parts Recycled . | . . . . . . . . . Recycled Matter . | . . . . . . . . . Retrieved Matter . | . . . . . . . . . Retrieved Components . | . . . . . . . . . Parts Scanalyzed 3 | . . . . . . . 3 . Part Schematics Acquired 3 | . . . . . . . 3 . Parts Damaged . | . . . . . . . . . Bothacking | -11 -10 -10 -10 -9 -8 -8 -7 -6 ------------ Run | Scr Mat Min Exi Min Mat Sto Fac Fac Used RIF Installer . | . . . . . . . . . Robots Hacked . | . . . . . . . . . Non-combat . | . . . . . . . . . Combat . | . . . . . . . . . Robot Hacks Applied . | . . . . . . . . . Relay Couplers Released . | . . . . . . . . . Robots Rewired . | . . . . . . . . . Allies Hacked . | . . . . . . . . . Hacks Repelled . | . . . . . . . . . Allies | -11 -10 -10 -10 -9 -8 -8 -7 -6 -------- Run | Scr Mat Min Exi Min Mat Sto Fac Fac Total Allies 2 | . . . . . . 2 . . Largest Group 2 | . . . . . . 2 . . Highest-Rated Group 62 | . . . . . . 62 . . Highest-Rated Ally 31 | . . . . . . 31 . . Total Orders . | . . . . . . . . . Ally Attacks 47 | . . . . . . 47 . . Total Damage 806 | . . . . . . 806 . . Kills 8 | . . . . . . 8 . . Allies Corrupted . | . . . . . . . . . Allies Melted . | . . . . . . . . . Intel | -11 -10 -10 -10 -9 -8 -8 -7 -6 ------- Run | Scr Mat Min Exi Min Mat Sto Fac Fac Robot Analysis Total 3 | . 2 . . . . 1 . . Derelict Logs Recovered 1 | . . 1 . . . . . . Drone Launches . | . . . . . . . . . Drone Recoveries . | . . . . . . . . . Exploration | -11 -10 -10 -10 -9 -8 -8 -7 -6 ------------- Run | Scr Mat Min Exi Min Mat Sto Fac Fac Turns Passed 4772 | 98 932 142 381 236 448 1068 658 809 Spaces Moved 2133 | 45 410 89 218 132 227 366 321 325 Core 7 | 2 5 . . . . . . . Treads 2126 | 43 405 89 218 132 227 366 321 325 Legs . | . . . . . . . . . Wheels . | . . . . . . . . . Hover . | . . . . . . . . . Flight . | . . . . . . . . . Fastest Speed 50 | 50 160 160 160 180 160 160 156 160 Average Speed 164 | 155 161 160 172 180 160 165 157 166 Slowest Speed 300 | 160 300 160 180 180 160 180 180 180 Overloaded Moves . | . . . . . . . . . Propulsion Burnouts . | . . . . . . . . . Robots Hopped . | . . . . . . . . . Cave-ins Triggered . | . . . . . . . . . Exploration Rate (%) 33 | 4 69 24 59 53 23 51 7 10 Regions Visited 8 Branch Regions 4 Pre-discovered Areas 1 | . . . 1 . . . . . Known Exits Taken 2 | . . . . . . 1 1 . Unknown Exits Taken 6 | 1 1 1 1 1 1 . . . Scrap Searched 2 | . . 1 . 1 . . . . Spaces Dug 3 | . . . . . . 2 1 . Terrain Destroyed 51 | . . . . . . 2 21 28 Melee 1 | . . . . . . . 1 . Projectile 1 | . . . . . . . . 1 AOE 49 | . . . . . . 2 20 27 Terrain Rammed . | . . . . . . . . . Walls Destroyed . | . . . . . . . . . Machines Disabled . | . . . . . . . . . Actions | -11 -10 -10 -10 -9 -8 -8 -7 -6 --------- Run | Scr Mat Min Exi Min Mat Sto Fac Fac Total 3087 | 60 627 89 221 131 285 708 449 517 Wait 529 | . 148 . . . . 204 84 93 Move 2125 | 44 409 88 217 131 226 365 320 325 Hop . | . . . . . . . . . Pick Up 63 | 4 9 1 2 . 14 16 6 11 Fast Attach 36 | 7 14 . . . 5 3 4 3 Attach 13 | . 1 . . . 3 2 3 4 Detach . | . . . . . . . . . Swap 68 | . 8 . 2 . 4 25 11 18 Drop 77 | . 10 . . . 13 26 11 17 Fire 155 | 5 26 . . . 15 66 9 34 Melee 2 | . . . . . . 1 1 . Ram . | . . . . . . . . . Kick . | . . . . . . . . . Crush 13 | . 2 . . . 5 . . 6 Escape Stasis 6 | . . . . . . . . 6 Rewire . | . . . . . . . . . Trap . | . . . . . . . . . Miscellaneous . | . . . . . . . . . Route ------- -11/Scrapyard -10/Materials (discovered 3 exits: [*Mat x2] / [*Min]) -10/Mines -10/Exiles -9/Mines -8/Materials (discovered 2 exits: Fac / *Sto) -8/Storage (discovered 2 exits: *Fac / Gar) -7/Factory (discovered 4 exits: *Fac x4) -6/Factory History --------- Turn | Location | Event 27 | -11/Scrapyard | Discovered new exit (range 15) 99 | -11/Scrapyard | Entered Materials 308 | -10/Materials | Build established: Mutant 383 | -10/Materials | Discovered new exit (range 6) 596 | -10/Materials | Repaired Lgt. Treads 624 | -10/Materials | Repaired Lgt. Treads 651 | -10/Materials | Repaired EM Pulse Gun 659 | -10/Materials | Discovered new exit (range 14) 894 | -10/Materials | Discovered new exit (range 16) 1031 | -10/Materials | Entered Mines 1078 | -10/Mines | Met a Derelict bent on vengeance 1144 | -10/Mines | Learned 2 Materials zone layouts 1167 | -10/Mines | Deemed a non-threat by the Exiles lab entrance 1167 | -10/Mines | Discovered new exit (range 5) 1173 | -10/Mines | Entered Exiles 1217 | -10/Exiles | Met 8R-AWN 1239 | -10/Exiles | Met EX-HEX 1330 | -10/Exiles | Met EX-DEC 1413 | -10/Exiles | Met EX-BIN 1449 | -10/Exiles | Learned location of Zion (-7) 1539 | -10/Exiles | Discovered new exit (range 10) 1554 | -10/Exiles | Entered Mines 1761 | -9/Mines | Discovered new exit (range 10) 1790 | -9/Mines | Entered Materials 1790 | -8/Materials | Evolved 4 slots: Propulsion x1, Utility x2, Weapon x1 1791 | -8/Materials | Identified exit to Factory 1858 | -8/Materials | Discovered new exit (range 13) 2238 | -8/Materials | Entered Storage 2582 | -8/Storage | Repaired Lgt. Treads 2773 | -8/Storage | Met a pair of Derelict thieves 3245 | -8/Storage | Discovered exit to Factory (range 16) 3273 | -8/Storage | Identified exit to Garrison 3306 | -8/Storage | Entered Factory 3306 | -7/Factory | Evolved 2 slots: Propulsion x1, Weapon x1 3373 | -7/Factory | Build established: Scavenger-Tank 3530 | -7/Factory | Identified exit to Factory 3720 | -7/Factory | Build established: Hauler-Tank 3964 | -7/Factory | Entered another Factory area 3964 | -6/Factory | Evolved 2 slots: Utility x2 4114 | -6/Factory | Fabricated Flak Gun? 4308 | -6/Factory | Fabricated Flak Gun (x2) 4463 | -6/Factory | Build established: Hauler-Gunner 4663 | -6/Factory | Local fabrication network quarantined 4664 | -6/Factory | First assault squad dispatched 4773 | -6/Factory | Self-destructed Last Messages --------------- 04761_ Penetrated by Slug. 04761_ Lgt. Treads destroyed. 04761_ U-05 Engineer lays Concrete. 04762_ K-01 Serf collects debris. 04763_ Slug penetrates L-41 Fighter. 04764_ Penetrated by Slug. 04765_ U-05 Engineer lays Concrete. 04766_ L-41 Fighter destroyed. 04766_ Switching to secondary target: G-67 Veteran. 04766_ Slug penetrates U-05 Engineer. 04766_ Slug penetrates Wall. 04767_ ALERT: Construction progress impeded, dispatching reinforcements to local area. 04767_ Penetrated by Slug. 04770_ Slug penetrates Wall. 04771_ Slug penetrates U-05 Engineer. 04771_ U-05 Engineer destroyed. 04771_ Slug penetrates Wall. 04772_ U-05 Engineer lays Concrete. 04773_ Lgt. Treads destroyed. Map ----- +----------------------------------------------------+ | ?????????????????????????????????????????????????? | | ?????????????????????????????????????????????????? | | ?????????????????????????????????????????????????? | | ?????????????????????????????????????????????????? | | ?????????????????????????????????????????????????? | | ?????????????????????????????????????????????????? | | ?????????????????????????????????????????????????? | | ?????????????????????????????????????????????????? | | ?????????????????????????????????????????????????? | | ?????????????????????????????????????????????????? | | ?????????????????????????????????????????????????? | | ?????????????????????????????????????????????????? | | ?????????????????????????????????????????????????? | | ?????????????????????????????????????????????????? | | ?????????????????????????????????????????????????? | | ?????????????????????????????????#???????????????? | | ???????????????????????????????? #???????????????? | | ??????????????????????????????? #???????????????? | | ??????????????????????????????" #???????????????? | | ?????????????????????????????? ????????????????? | | ????????????????????????????? ?????????????????? | | ???????????????????????????? ??????????????????? | | ??????????????????????????? ???????????????????? | | ?????????? #############+####+### #?????????? | | ?????????? %!%[ !b%=%* ????????????? | | ?????????? %== !%@ #??????????????????? | | ?????????? !%%[= ku ** #??????????????????? | | ?????????? !!%=% uu u #??????????????????? | | ?????????? =!*!g ggu #??????????????????? | | ???????????#/# ########## ###??????????????????? | | ???????????? ???????????#%#????????????????????? | | ??????? ???? ?????????????# #????????????????????? | | ???#? ?????????????????# #????????????????????? | | ???# ?????????????????# #????????????????????? | | ???# ?????????????????# #????????????????????? | | ???# #????????????????# #????????????????????? | | ???# #????????????????# #????????????????????? | | ???# #???????????????## ####?????????????????? | | ???# #???????????????# #?????????????????? | | ???# #???????????????# #?????????????????? | | ???# #???????????????# #?????????????????? | | ???# #???????????????# +?????????????????? | | ???# ################# #?????????????????? | | ???# ===!= #?????????????????? | | ???# ==[ ! #?????????????????? | | ???# !=]= #?????????????????? | | ???# !!%!! ????????????? | | ???# ^!! "??????????? | | ####% ###### = =% ?????????? | | !=%%% #????# """"%%""" #### ??????????? | +----------------------------------------------------+ Best States ------------- Heat Dissipation 59 Energy Generation 18 Energy Capacity 310 Matter Stores 300 Matter Capacity 300 Sight Range 16 Terrain Scan Density 10 Armor Coverage 225 Resistance: EM 15 Evasion (%) 40 Targeting Accuracy 8 Core Analysis 6 Recoil Reduction 4 Item Schematics ----------------- Hcp. Storage Unit | -10/Materials | Hacked Hrd. Heavy Armor Plating | -7/Factory | Scanalyzed Flak Gun | -7/Factory | Scanalyzed Adv. Treads | -7/Factory | Scanalyzed Robot Schematics ------------------ None Fabricated ------------ Flak Gun | x2 | -6/Factory Flak Gun | x2 | -6/Factory Alien Tech Used ----------------- None Achievements -------------- None Challenges ------------ None Game ------ Seed ImprinterBoreStripper Manual? 0 Play Time 00:25:37 Cumulative 645.2 hours Start 2020.10.09 @ 14:03:24 End 2020.10.09 @ 14:28:43 Sessions 1 Manual Loads 0 Difficulty Rogue Special Mode None Game No. 983 Rogue 983 Adventurer 0 Explorer 0 Win Type - Total 62 Types 38/1/8/11/4/0/0/0/0 Lore% 94 Gallery% 94 Achievement% 83 Wizard Run 0 Options --------- ASCII 1 Keyboard 0 Movement Numpad Keybinds 0 Fullscreen 0 Font 14/SmallcapsGlow Map View 76x50 Tactical HUD 1 Map Filters NONE Filters NONE Steam 1 RUN: 2a786d62-9d32-4a13-8750-cbacd842dc13